[Event "22nd Ruzomberok Open 2019"]
[Site "Ruzomberok"]
[Date "2019.07.05"]
[Round "7.4"]
[White "Zvarik, Martin"]
[Black "Zahradnik, Vladimir"]
[Result "1-0"]
[ECO "B07"]
[WhiteElo "2308"]
[BlackElo "1862"]
[Annotator "NA"]
[PlyCount "73"]
[EventDate "2019.06.29"]
[EventType "swiss"]
[EventCountry "SVK"]
[SourceTitle "playchess.com"]
[Source "ChessBase"]
[SourceQuality "1"]
[TimeControl "40/5400+30:1800+30"]

1. e4 {[%emt 0:00:00]} d6 {[%emt 0:00:12]} 2. d4 {[%emt 0:00:33]} Nf6 {[%emt 0:00:16]} 3. Nc3 {[%emt 0:00:14]} c6 {[%emt 0:00:16]} 4. f4 {[%emt 0:01:38]} g6 {[%emt 0:04:38]} 5. Nf3 {[%emt 0:01:38]} Bg7 {[%emt 0:00:30]} 6. Bd3 {[%emt 0:04:16]} O-O {[%emt 0:00:28]} 7. O-O {[%emt 0:04:00]} Bg4 {[%emt 0:05:59]} 8. Qe1 {[%emt 0:04:14]} Nfd7 {[%emt 0:02:17]} 9. e5 {[%emt 0:11:25]} d5 {[%emt 0:00:20]} 10. Nh4 {[%emt 0:18:33]} e6 {[%emt 0:16:36]} 11. h3 {[%emt 0:01:59]} Bf5 {[%emt 0:03:32]} 12. Nxf5 {[%emt 0:00:30]} exf5 {[%emt 0:00:19]} 13. Be3 {[%emt 0:03:45]} Re8 {[%emt 0:00:36]} 14. g4 {[%emt 0:02:30]} fxg4 {[%emt 0:01:06]} 15. hxg4 {[%emt 0:00:04]} Nf8 {[%emt 0:00:31]} 16. Rd1 {[%emt 0:02:10]} Nbd7 {[%emt 0:02:10]} 17. Rd2 {[%emt 0:05:39]} f6 {[%emt 0:00:29]} 18. Nd1 {[%emt 0:06:36]} c5 {[%emt 0:06:11]} 19. c3 {[%emt 0:00:58]} c4 {[%emt 0:08:00]} 20. Bc2 {[%emt 0:01:23]} b5 {[%emt 0:00:06]} 21. Rh2 {[%emt 0:02:47]} a5 {[%emt 0:00:49]} 22. Qf2 {[%emt 0:01:23]} Nb6 {[%emt 0:01:33]} 23. f5 {[%emt 0:00:21]} g5 {[%emt 0:03:22]} 24. Bxg5 {[%emt 0:00:33]} fxg5 {[%emt 0:14:51]} 25. f6 {[%emt 0:00:06]} Bxf6 {[%emt 0:00:09]} 26. exf6 {[%emt 0:00:05]} Kh8 {[%emt 0:03:26]} 27. Qf5 {[%emt 0:03:56]} Qd7 {[%emt 0:01:38]} 28. Qxg5 {[%emt 0:00:27]} Qf7 {[%emt 0:00:29]} 29. Ne3 {[%emt 0:01:34]} Re6 {[%emt 0:04:46]} 30. Rf3 {[%emt 0:03:27]} Ra7 {[%emt 0:02:50]} 31. Rhf2 {[%emt 0:04:57]} Rc6 {[%emt 0:04:05]} 32. Qg7+ {[%emt 0:01:03]} Qxg7 {[%emt 0:00:47]} 33. fxg7+ {[%emt 0:00:05]} Kxg7 {[%emt 0:00:08]} 34. Rxf8 {[%emt 0:00:05]} Re6 {[%emt 0:00:50]} 35. Ng2 {[%emt 0:00:17]} b4 {[%emt 0:02:10]} 36. R8f5 {[%emt 0:00:59]} Rg6 {[%emt 0:03:14]} 37. Rh5 {[%emt 0:00:04]} 1-0

[Event "22nd Ruzomberok Open 2019"]
[Site "Ruzomberok"]
[Date "2019.07.05"]
[Round "7.5"]
[White "Bombek, Peter"]
[Black "Bednar, Jan"]
[Result "1-0"]
[ECO "D02"]
[WhiteElo "2159"]
[BlackElo "2084"]
[Annotator "NA"]
[PlyCount "69"]
[EventDate "2019.06.29"]
[EventType "swiss"]
[EventCountry "SVK"]
[SourceTitle "playchess.com"]
[Source "ChessBase"]
[SourceQuality "1"]
[TimeControl "40/5400+30:1800+30"]

1. d4 {[%emt 0:00:00]} d5 {[%emt 0:00:00]} 2. Nf3 {[%emt 0:00:25]} Nf6 {[%emt 0:00:09]} 3. Bf4 {[%emt 0:00:55]} c5 {[%emt 0:01:39]} 4. e3 {[%emt 0:00:39]} Nc6 {[%emt 0:00:45]} 5. c3 {[%emt 0:01:06]} cxd4 {[%emt 0:03:24]} 6. exd4 {[%emt 0:01:00]} g6 {[%emt 0:00:47]} 7. Nbd2 {[%emt 0:00:41]} Bg7 {[%emt 0:00:06]} 8. Bd3 {[%emt 0:00:43]} O-O {[%emt 0:00:29]} 9. O-O {[%emt 0:00:07]} a6 {[%emt 0:02:28]} 10. a4 {[%emt 0:03:02]} Bd7 {[%emt 0:07:03]} 11. h3 {[%emt 0:01:35]} Rc8 {[%emt 0:02:57]} 12. Re1 {[%emt 0:01:28]} Re8 {[%emt 0:00:58]} 13. Ne5 {[%emt 0:02:11]} Qb6 {[%emt 0:04:44]} 14. Qb3 {[%emt 0:05:16]} Qxb3 {[%emt 0:06:26]} 15. Nxb3 {[%emt 0:00:32]} Nd8 {[%emt 0:07:24]} 16. Nc5 {[%emt 0:04:28]} Bf5 {[%emt 0:09:45]} 17. Ra3 {[%emt 0:06:17]} Bxd3 {[%emt 0:03:49]} 18. Nexd3 {[%emt 0:01:45]} Ra8 {[%emt 0:17:06]} 19. Rb3 {[%emt 0:03:18]} Ra7 {[%emt 0:06:00]} 20. Bb8 {[%emt 0:04:02]} Ra8 {[%emt 0:00:12]} 21. Bc7 {[%emt 0:00:38]} Ne4 {[%emt 0:11:49]} 22. Bxd8 {[%emt 0:03:21]} Raxd8 {[%emt 0:03:08]} 23. Rxb7 {[%emt 0:02:02]} e5 {[%emt 0:03:37]} 24. dxe5 {[%emt 0:07:50]} Bxe5 {[%emt 0:00:51]} 25. Nxa6 {[%emt 0:06:47]} Ra8 {[%emt 0:03:09]} 26. Nxe5 {[%emt 0:04:27]} Rxa6 {[%emt 0:00:25]} 27. Nxf7 {[%emt 0:01:30]} Rxa4 {[%emt 0:01:03]} 28. Nh6+ {[%emt 0:07:44]} Kh8 {[%emt 0:00:05]} 29. f3 {[%emt 0:09:51]} Nd6 {[%emt 0:00:48]} 30. Rxe8+ {[%emt 0:01:56]} Nxe8 {[%emt 0:00:05]} 31. g4 {[%emt 0:02:41]} d4 {[%emt 0:02:44]} 32. Re7 {[%emt 0:03:20]} Nd6 {[%emt 0:01:00]} 33. Rd7 {[%emt 0:01:32]} dxc3 {[%emt 0:00:10]} 34. Rd8+ {[%emt 0:00:44]} Kg7 {[%emt 0:00:08]} 35. g5 {[%emt 0:00:21]} 1-0

[Event "22nd Ruzomberok Open 2019"]
[Site "Ruzomberok"]
[Date "2019.07.05"]
[Round "7.6"]
[White "Motycakova, Monika"]
[Black "Mrvova, Alena"]
[Result "1/2-1/2"]
[ECO "B84"]
[WhiteElo "2150"]
[BlackElo "2153"]
[Annotator "NA"]
[PlyCount "92"]
[EventDate "2019.06.29"]
[EventType "swiss"]
[EventCountry "SVK"]
[SourceTitle "playchess.com"]
[Source "ChessBase"]
[SourceQuality "1"]
[TimeControl "40/5400+30:1800+30"]

1. e4 {[%emt 0:00:00]} c5 {[%emt 0:00:00]} 2. Nf3 {[%emt 0:00:00]} d6 {[%emt 0:00:23]} 3. d4 {[%emt 0:00:00]} cxd4 {[%emt 0:00:08]} 4. Nxd4 {[%emt 0:00:00]} Nf6 {[%emt 0:00:12]} 5. Nc3 {[%emt 0:00:08]} a6 {[%emt 0:00:17]} 6. Be2 {[%emt 0:00:49]} e6 {[%emt 0:00:46]} 7. O-O {[%emt 0:00:43]} Be7 {[%emt 0:01:06]} 8. f4 {[%emt 0:00:55]} Qc7 {[%emt 0:00:46]} 9. a4 {[%emt 0:00:09]} b6 {[%emt 0:00:20]} 10. Bf3 {[%emt 0:02:39]} Bb7 {[%emt 0:00:42]} 11. e5 {[%emt 0:14:47]} dxe5 {[%emt 0:15:14]} 12. Bxb7 {[%emt 0:04:17]} exd4 {[%emt 0:03:12]} 13. Bxa8 {[%emt 0:02:42]} dxc3 {[%emt 0:00:14]} 14. Qd3 {[%emt 0:16:34]} cxb2 {[%emt 0:05:07]} 15. Bxb2 {[%emt 0:00:19]} O-O {[%emt 0:00:16]} 16. Be5 {[%emt 0:06:55]} Qa7 {[%emt 0:01:10]} 17. Bf3 {[%emt 0:02:13]} Nbd7 {[%emt 0:01:32]} 18. Bb2 {[%emt 0:11:38]} Qc7 {[%emt 0:01:33]} 19. f5 {[%emt 0:08:13]} Nc5 {[%emt 0:07:27]} 20. Qe3 {[%emt 0:11:02]} exf5 {[%emt 0:10:49]} 21. Qg5 {[%emt 0:00:34]} Qc8 {[%emt 0:05:27]} 22. Rfe1 {[%emt 0:08:45]} h6 {[%emt 0:02:36]} 23. Qg3 {[%emt 0:00:24]} Ne6 {[%emt 0:00:46]} 24. Re2 {[%emt 0:06:09]} f4 {[%emt 0:01:11]} 25. Qe1 {[%emt 0:01:17]} Bc5+ {[%emt 0:00:42]} 26. Kh1 {[%emt 0:00:03]} Nh7 {[%emt 0:02:57]} 27. Bd5 {[%emt 0:00:29]} Nc7 {[%emt 0:03:47]} 28. Qc3 {[%emt 0:01:11]} Nf6 {[%emt 0:01:18]} 29. Bf3 {[%emt 0:00:06]} Ne6 {[%emt 0:00:10]} 30. Qc4 {[%emt 0:00:26]} Be3 {[%emt 0:06:57]} 31. Qxc8 {[%emt 0:01:10]} Rxc8 {[%emt 0:00:03]} 32. Bb7 {[%emt 0:00:13]} Rd8 {[%emt 0:01:12]} 33. Bxf6 {[%emt 0:00:47]} gxf6 {[%emt 0:00:04]} 34. Bxa6 {[%emt 0:00:10]} Nd4 {[%emt 0:00:21]} 35. Rd1 {[%emt 0:00:43]} Ra8 {[%emt 0:00:31]} 36. Rxd4 {[%emt 0:00:50]} Bxd4 {[%emt 0:01:20]} 37. Bb5 {[%emt 0:00:07]} Be3 {[%emt 0:00:23]} 38. g3 {[%emt 0:00:43]} Rd8 {[%emt 0:00:14]} 39. Bd3 {[%emt 0:00:17]} Rd4 {[%emt 0:04:09]} 40. gxf4 {[%emt 0:00:26]} Bxf4 {[%emt 0:00:07]} 41. Re4 {[%emt 0:07:13]} Rxe4 {[%emt 0:00:05]} 42. Bxe4 {[%emt 0:00:03]} Kf8 {[%emt 0:00:06]} 43. Kg2 {[%emt 0:00:49]} Ke7 {[%emt 0:00:05]} 44. h3 {[%emt 0:01:01]} Kd6 {[%emt 0:00:17]} 45. Kf3 {[%emt 0:00:58]} Bc1 {[%emt 0:00:09]} 46. Bd3 {[%emt 0:03:43]} Kc5 {[%emt 0:00:17]} 1/2-1/2

[Event "22nd Ruzomberok Open 2019"]
[Site "Ruzomberok"]
[Date "2019.07.05"]
[Round "7.7"]
[White "Farkas, Gabor"]
[Black "Hrnciar, Roman"]
[Result "1-0"]
[ECO "B03"]
[WhiteElo "2353"]
[BlackElo "2096"]
[Annotator "NA"]
[PlyCount "59"]
[EventDate "2019.06.29"]
[EventType "swiss"]
[EventCountry "SVK"]
[SourceTitle "playchess.com"]
[Source "ChessBase"]
[SourceQuality "1"]
[TimeControl "40/5400+30:1800+30"]

1. e4 {[%emt 0:00:00]} Nf6 {[%emt 0:00:00]} 2. e5 {[%emt 0:00:00]} Nd5 {[%emt 0:00:00]} 3. d4 {[%emt 0:00:01]} d6 {[%emt 0:00:46]} 4. c4 {[%emt 0:00:48]} Nb6 {[%emt 0:00:18]} 5. exd6 {[%emt 0:00:09]} exd6 {[%emt 0:02:00]} 6. Nc3 {[%emt 0:04:27]} Be7 {[%emt 0:01:03]} 7. Be3 {[%emt 0:13:32]} Nc6 {[%emt 0:03:17]} 8. h3 {[%emt 0:01:12]} O-O {[%emt 0:03:22]} 9. Nf3 {[%emt 0:02:44]} Re8 {[%emt 0:03:23]} 10. Be2 {[%emt 0:00:12]} Bf5 {[%emt 0:00:45]} 11. O-O {[%emt 0:01:36]} Bf6 {[%emt 0:04:26]} 12. Rc1 {[%emt 0:01:15]} d5 {[%emt 0:12:47]} 13. c5 {[%emt 0:03:25]} Nc8 {[%emt 0:05:30]} 14. Re1 {[%emt 0:01:39]} g6 {[%emt 0:01:36]} 15. Nh2 {[%emt 0:11:22]} N8e7 {[%emt 0:04:46]} 16. Ng4 {[%emt 0:01:59]} Bxg4 {[%emt 0:03:59]} 17. Bxg4 {[%emt 0:03:01]} Bg7 {[%emt 0:01:08]} 18. Qd3 {[%emt 0:03:45]} Nb4 {[%emt 0:06:27]} 19. Qb5 {[%emt 0:03:34]} a5 {[%emt 0:01:29]} 20. a3 {[%emt 0:02:36]} c6 {[%emt 0:01:25]} 21. Qe2 {[%emt 0:00:09]} Na6 {[%emt 0:03:05]} 22. Bg5 {[%emt 0:02:42]} Kf8 {[%emt 0:01:16]} 23. Na4 {[%emt 0:04:10]} Qc7 {[%emt 0:01:47]} 24. Nb6 {[%emt 0:01:29]} Rad8 {[%emt 0:00:17]} 25. Qd2 {[%emt 0:00:37]} Nf5 {[%emt 0:05:56]} 26. Bxd8 {[%emt 0:00:24]} Rxe1+ {[%emt 0:00:18]} 27. Rxe1 {[%emt 0:00:23]} Qxd8 {[%emt 0:00:08]} 28. Bxf5 {[%emt 0:00:19]} gxf5 {[%emt 0:00:14]} 29. Qf4 {[%emt 0:00:17]} Qf6 {[%emt 0:01:16]} 30. Nd7+ {[%emt 0:00:11]} 1-0

[Event "22nd Ruzomberok Open 2019"]
[Site "Ruzomberok"]
[Date "2019.07.05"]
[Round "7.8"]
[White "Karas, Marek"]
[Black "Cech, Dominik"]
[Result "1-0"]
[ECO "A48"]
[WhiteElo "2268"]
[BlackElo "2092"]
[Annotator "NA"]
[PlyCount "105"]
[EventDate "2019.06.29"]
[EventType "swiss"]
[EventCountry "SVK"]
[SourceTitle "playchess.com"]
[Source "ChessBase"]
[SourceQuality "1"]
[TimeControl "40/5400+30:1800+30"]

1. d4 {[%emt 0:00:00]} Nf6 {[%emt 0:00:00]} 2. Nf3 {[%emt 0:00:00]} g6 {[%emt 0:00:00]} 3. Nc3 {[%emt 0:00:00]} d5 {[%emt 0:01:16]} 4. Bf4 {[%emt 0:00:00]} Bg7 {[%emt 0:01:11]} 5. e3 {[%emt 0:00:00]} O-O {[%emt 0:00:44]} 6. Nb5 {[%emt 0:00:12]} Na6 {[%emt 0:04:37]} 7. h3 {[%emt 0:00:07]} c6 {[%emt 0:13:36]} 8. Nc3 {[%emt 0:00:06]} Qa5 {[%emt 0:07:13]} 9. Qd2 {[%emt 0:02:21]} c5 {[%emt 0:08:34]} 10. Be2 {[%emt 0:01:32]} cxd4 {[%emt 0:11:04]} 11. exd4 {[%emt 0:00:59]} Bd7 {[%emt 0:09:13]} 12. O-O {[%emt 0:04:03]} Rfc8 {[%emt 0:04:48]} 13. Ne5 {[%emt 0:02:09]} Be8 {[%emt 0:01:17]} 14. a3 Qd8 {[%emt 0:03:10]} 15. Bf3 {[%emt 0:08:12]} Nc7 {[%emt 0:02:23]} 16. Rfe1 {[%emt 0:08:44]} Ne6 {[%emt 0:10:33]} 17. Be3 {[%emt 0:01:27]} b5 {[%emt 0:01:25]} 18. g4 {[%emt 0:01:41]} a5 {[%emt 0:00:58]} 19. Qd3 {[%emt 0:09:06]} b4 {[%emt 0:02:15]} 20. axb4 {[%emt 0:01:50]} axb4 {[%emt 0:00:25]} 21. Ne2 {[%emt 0:00:39]} Rxa1 {[%emt 0:03:31]} 22. Rxa1 {[%emt 0:00:06]} Ra8 {[%emt 0:00:28]} 23. Rxa8 {[%emt 0:01:25]} Qxa8 {[%emt 0:00:06]} 24. Qb3 {[%emt 0:02:14]} Qa4 {[%emt 0:07:14]} 25. Nd3 {[%emt 0:03:25]} Qxb3 {[%emt 0:02:06]} 26. cxb3 {[%emt 0:00:02]} Nc7 {[%emt 0:02:33]} 27. Nxb4 {[%emt 0:01:03]} e6 {[%emt 0:00:07]} 28. Nc3 {[%emt 0:01:04]} Bd7 {[%emt 0:01:26]} 29. Be2 {[%emt 0:00:34]} Nfe8 {[%emt 0:00:31]} 30. Na6 {[%emt 0:04:55]} e5 {[%emt 0:01:09]} 31. dxe5 {[%emt 0:01:22]} Bxe5 {[%emt 0:00:10]} 32. f4 {[%emt 0:01:41]} Bg7 {[%emt 0:00:32]} 33. Nxc7 {[%emt 0:02:24]} Nxc7 {[%emt 0:00:11]} 34. Bb6 {[%emt 0:00:26]} Na8 {[%emt 0:01:26]} 35. Ba5 {[%emt 0:00:41]} Bd4+ {[%emt 0:00:28]} 36. Kg2 {[%emt 0:01:16]} Nb6 {[%emt 0:00:30]} 37. Bf3 {[%emt 0:00:21]} Be6 {[%emt 0:00:15]} 38. Bxb6 {[%emt 0:01:51]} Bxb6 {[%emt 0:00:09]} 39. Bxd5 {[%emt 0:00:09]} Bd7 {[%emt 0:00:57]} 40. b4 {[%emt 0:00:17]} Kf8 {[%emt 0:00:26]} 41. b5 {[%emt 0:30:34]} Ke7 {[%emt 0:11:17]} 42. Kf3 {[%emt 0:00:00]} h5 {[%emt 0:02:07]} 43. Bc4 {[%emt 0:00:00]} hxg4+ {[%emt 0:00:11]} 44. hxg4 {[%emt 0:00:00]} Bg1 {[%emt 0:06:54]} 45. Nd5+ {[%emt 0:00:00]} Kd8 {[%emt 0:00:34]} 46. Nf6 {[%emt 0:00:00]} Be8 {[%emt 0:00:49]} 47. Ke4 {[%emt 0:00:00]} Ke7 {[%emt 0:01:51]} 48. g5 {[%emt 0:00:00]} Bf2 {[%emt 0:00:26]} 49. b6 {[%emt 0:00:00]} Bc6+ {[%emt 0:00:38]} 50. Bd5 {[%emt 0:00:00]} Kd6 {[%emt 0:02:02]} 51. Bxc6 {[%emt 0:00:00]} Kxc6 {[%emt 0:00:10]} 52. Ng4 {[%emt 0:00:00]} Bh4 {[%emt 0:02:26]} 53. Ne5+ {[%emt 0:00:00] Kd5+} 1-0

[Event "22nd Ruzomberok Open 2019"]
[Site "Ruzomberok"]
[Date "2019.07.05"]
[Round "7.9"]
[White "Holly, Andrej"]
[Black "Sarkozy, Ladislav"]
[Result "1/2-1/2"]
[ECO "B20"]
[WhiteElo "2046"]
[BlackElo "2227"]
[Annotator "NA"]
[PlyCount "26"]
[EventDate "2019.06.29"]
[EventType "swiss"]
[EventCountry "SVK"]
[SourceTitle "playchess.com"]
[Source "ChessBase"]
[SourceQuality "1"]
[TimeControl "40/5400+30:1800+30"]

1. e4 {[%emt 0:00:00]} c5 {[%emt 0:00:00]} 2. Be2 {[%emt 0:00:04]} d6 {[%emt 0:02:30]} 3. f4 {[%emt 0:00:34]} Nf6 {[%emt 0:00:41]} 4. d3 {[%emt 0:00:42]} g6 {[%emt 0:00:33]} 5. Nf3 {[%emt 0:00:46]} Bg7 {[%emt 0:00:24]} 6. O-O {[%emt 0:01:08]} O-O {[%emt 0:00:33]} 7. c3 {[%emt 0:03:38]} Nc6 {[%emt 0:02:06]} 8. Qe1 {[%emt 0:03:52]} c4 {[%emt 0:03:44]} 9. Nbd2 {[%emt 0:09:21]} cxd3 {[%emt 0:01:21]} 10. Bxd3 {[%emt 0:00:03]} e5 {[%emt 0:07:28]} 11. fxe5 {[%emt 0:08:47]} dxe5 {[%emt 0:01:53]} 12. Bc2 {[%emt 0:00:44]} Nh5 {[%emt 0:02:43]} 13. Nc4 {[%emt 0:07:16]} Be6 1/2-1/2

[Event "22nd Ruzomberok Open 2019"]
[Site "Ruzomberok"]
[Date "2019.07.05"]
[Round "7.10"]
[White "Vacek, Ondrej"]
[Black "Bartek, Ladislav"]
[Result "1/2-1/2"]
[ECO "E92"]
[WhiteElo "2125"]
[BlackElo "2042"]
[Annotator "NA"]
[PlyCount "68"]
[EventDate "2019.06.29"]
[EventType "swiss"]
[EventCountry "SVK"]
[SourceTitle "playchess.com"]
[Source "ChessBase"]
[SourceQuality "1"]
[TimeControl "40/5400+30:1800+30"]

1. Nf3 {[%emt 0:00:00]} Nf6 {[%emt 0:00:00]} 2. c4 {[%emt 0:00:00]} g6 {[%emt 0:00:00]} 3. Nc3 {[%emt 0:00:00]} Bg7 {[%emt 0:00:00]} 4. e4 {[%emt 0:00:00]} d6 {[%emt 0:00:03]} 5. d4 {[%emt 0:00:00]} O-O {[%emt 0:00:10]} 6. Be2 {[%emt 0:00:02]} e5 {[%emt 0:00:07]} 7. Be3 {[%emt 0:00:08]} Nc6 {[%emt 0:01:57]} 8. d5 {[%emt 0:02:41]} Ne7 {[%emt 0:00:07]} 9. Nd2 {[%emt 0:00:13]} Nd7 {[%emt 0:00:40]} 10. Rc1 {[%emt 0:00:34]} f5 {[%emt 0:00:16]} 11. f3 {[%emt 0:00:06]} fxe4 {[%emt 0:00:45]} 12. fxe4 {[%emt 0:00:30]} c5 {[%emt 0:01:59]} 13. Nf3 {[%emt 0:08:13]} Nf6 {[%emt 0:02:30]} 14. Ng5 {[%emt 0:01:35]} h6 {[%emt 0:02:01]} 15. Ne6 {[%emt 0:00:19]} Bxe6 {[%emt 0:00:09]} 16. dxe6 {[%emt 0:00:04]} Nc6 {[%emt 0:01:39]} 17. O-O {[%emt 0:01:58]} Nd4 {[%emt 0:01:00]} 18. Nd5 {[%emt 0:02:32]} Nxe6 {[%emt 0:05:13]} 19. Nxf6+ {[%emt 0:02:15]} Rxf6 {[%emt 0:00:21]} 20. Qd5 {[%emt 0:00:37]} Kh7 {[%emt 0:00:39]} 21. Rxf6 {[%emt 0:03:48]} Qxf6 {[%emt 0:01:02]} 22. Qxb7 {[%emt 0:01:13]} Nf4 {[%emt 0:00:38]} 23. Bf3 {[%emt 0:04:59]} Rf8 {[%emt 0:02:12]} 24. Rd1 {[%emt 0:02:56]} Nh3+ {[%emt 0:00:35]} 25. Kh1 {[%emt 0:11:00]} Rf7 {[%emt 0:02:08]} 26. Qc8 {[%emt 0:01:59]} Ng5 {[%emt 0:00:49]} 27. Bxg5 {[%emt 0:03:08]} Qxg5 {[%emt 0:01:22]} 28. Qe6 {[%emt 0:04:09]} Rf6 {[%emt 0:01:23]} 29. Qd5 {[%emt 0:00:41]} Qe3 {[%emt 0:02:29]} 30. Qd3 {[%emt 0:01:01]} Qxd3 {[%emt 0:01:56]} 31. Rxd3 {[%emt 0:03:01]} h5 {[%emt 0:00:07]} 32. Kg1 {[%emt 0:02:29]} Bh6 {[%emt 0:00:09]} 33. h3 {[%emt 0:01:55]} Bc1 {[%emt 0:00:42]} 34. Rb3 {[%emt 0:02:59]} Rf7 1/2-1/2

[Event "22nd Ruzomberok Open 2019"]
[Site "Ruzomberok"]
[Date "2019.07.05"]
[Round "7.11"]
[White "Orvisky, Vladimir"]
[Black "Majerova, Veronika"]
[Result "1-0"]
[ECO "E92"]
[WhiteElo "1719"]
[BlackElo "1531"]
[Annotator "NA"]
[PlyCount "73"]
[EventDate "2019.06.29"]
[EventType "swiss"]
[EventCountry "SVK"]
[SourceTitle "playchess.com"]
[Source "ChessBase"]
[SourceQuality "1"]
[TimeControl "40/5400+30:1800+30"]

1. c4 {[%emt 0:00:00]} g6 {[%emt 0:00:08]} 2. Nc3 Bg7 {[%emt 0:00:31]} 3. d4 {[%emt 0:00:02]} d6 {[%emt 0:00:15]} 4. Nf3 {[%emt 0:00:00]} Nf6 {[%emt 0:00:19]} 5. e4 {[%emt 0:00:08]} O-O {[%emt 0:00:21]} 6. Be2 {[%emt 0:02:36]} e5 {[%emt 0:00:33]} 7. dxe5 {[%emt 0:00:38]} dxe5 {[%emt 0:00:42]} 8. Qxd8 {[%emt 0:00:27]} Rxd8 {[%emt 0:00:16]} 9. Bg5 {[%emt 0:08:33]} Re8 {[%emt 0:07:13]} 10. Rd1 {[%emt 0:05:08]} c6 {[%emt 0:05:45]} 11. O-O {[%emt 0:02:22]} Nbd7 {[%emt 0:01:27]} 12. Rd6 {[%emt 0:04:35]} h6 {[%emt 0:07:11]} 13. Bc1 {[%emt 0:05:17]} Nc5 {[%emt 0:01:43]} 14. Nd2 {[%emt 0:22:21]} a5 {[%emt 0:06:29]} 15. f3 {[%emt 0:00:43]} Nh5 {[%emt 0:03:20]} 16. Nb3 {[%emt 0:03:32]} Ne6 {[%emt 0:10:06]} 17. a4 {[%emt 0:06:24]} Nd4 {[%emt 0:09:09]} 18. Nxd4 {[%emt 0:00:42]} exd4 {[%emt 0:00:30]} 19. Nb1 {[%emt 0:02:14]} Be5 {[%emt 0:01:24]} 20. g4 {[%emt 0:00:03]} Ng7 {[%emt 0:04:37]} 21. c5 {[%emt 0:00:05]} Bxd6 {[%emt 0:01:35]} 22. cxd6 {[%emt 0:03:20]} Kh7 {[%emt 0:02:08]} 23. Bd3 {[%emt 0:03:40]} Bd7 {[%emt 0:04:54]} 24. Re1 {[%emt 0:01:29]} c5 {[%emt 0:01:56]} 25. b3 {[%emt 0:00:41]} Bc6 {[%emt 0:01:57]} 26. f4 {[%emt 0:02:31]} f6 {[%emt 0:09:18]} 27. Kf2 {[%emt 0:03:22]} Re6 {[%emt 0:04:25]} 28. e5 {[%emt 0:01:03]} fxe5 {[%emt 0:00:31]} 29. fxe5 {[%emt 0:01:24]} Rf8+ {[%emt 0:01:49]} 30. Kg1 {[%emt 0:03:39]} Bf3 {[%emt 0:04:28]} 31. Bc4 {[%emt 0:03:54]} Ree8 {[%emt 0:01:06]} 32. e6 {[%emt 0:03:05]} Bxg4 {[%emt 0:07:37]} 33. e7 {[%emt 0:11:24]} Rf6 {[%emt 0:00:18]} 34. Bf4 {[%emt 0:00:46]} Bd7 {[%emt 0:01:04]} 35. Be5 {[%emt 0:00:13]} Rf3 {[%emt 0:01:39]} 36. Bb5 {[%emt 0:00:02]} Bxb5 {[%emt 0:00:36]} 37. axb5 1-0